fUSD/lending_fUSD_20260131
["ID","MTS","AMOUNT","RATE_DAILY","PERIOD"]
[404111400,1769868663656,-6505.21,0.000283,2]
[404111401,1769868663667,-682.79230416,0.00028316,95]
[404111402,1769868663676,-150.0,0.0002845,2]
[404111403,1769868663686,-150.0,0.0002845,2]
[404111404,1769868663698,-150.0,0.0002845,2]
[404111405,1769868663708,-20000.0,0.00028463,7]
[404111406,1769868663717,-151.0,0.000285,7]
[404111407,1769868663727,-227.59743468,0.00028522,120]
[404111408,1769868663737,-152.0,0.00028525,9]
[404111409,1769868663747,-152.0,0.00028525,3]
[404111410,1769868663761,-682.79230416,0.00028609,98]
[404111411,1769868663771,-618.0,0.00028646,11]
[404111412,1769868663781,-163.71720184,0.00028699,120]
[404111413,1769868663791,-168.0,0.00028756,14]
[404111414,1769868663801,-213.39019607,0.00028767,2]
[404111415,1769868663811,-211.0,0.0002882,30]
[404111416,1769868663821,-682.79230416,0.00028902,102]
[404111417,1769868663831,-152.0,0.00028927,10]
[404111418,1769868663841,-168.0,0.00028997,14]
[404111419,1769868663851,-501.98745934,0.00029,2]
[404111420,1769868663861,-600.0,0.00029,2]
[404111421,1769868663870,-682.79230416,0.00029194,106]
[404111422,1769868663880,-150.0,0.00029253,2]
[404111423,1769868663891,-618.0,0.00029273,12]
[404111424,1769868663900,-194.36502416,0.00029324,120]
[404111425,1769868663910,-152.0,0.0002933,11]
[404111426,1769868663920,-250.54962211,0.0002947,10]
[404111427,1769868663929,-218.8027965,0.00029487,110]
[404111428,1769868663939,-1000.0,0.00029505,120]
[404111429,1769868663949,-1000.0,0.00029505,120]
[404111430,1769868663959,-642.033,0.00029505,120]
[404111431,1769868663969,-1000.0,0.00029505,30]
[404111432,1769868663979,-1000.0,0.00029505,30]
[404111433,1769868663988,-1000.0,0.00029505,30]
[404111434,1769868663998,-493.149,0.00029505,30]
[404111435,1769868664010,-150.0,0.00029589,2]
[404111436,1769868664020,-1103.0,0.00029682,5]
[404111437,1769868664029,-152.0,0.00029733,12]
[404111438,1769868664039,-2000.0,0.00029748,10]
[404111439,1769868664048,-618.0,0.00029899,13]
[404111440,1769868664058,-500.0,0.0003,120]
[404111441,1769868664068,-151.0,0.0003,2]
[404111442,1769868664077,-151.0,0.0003,7]
[404111443,1769868664087,-591.25235624,0.0003,7]
[404111444,1769868664097,-150.0,0.0003,2]
[404111445,1769868664107,-150.0,0.0003,5]
[404111446,1769868664118,-150.0,0.0003,7]
[404111447,1769868664129,-150.0,0.0003,14]
[404111448,1769868664139,-150.0,0.0003,30]
[404111449,1769868664148,-150.0,0.0003,2]
[404111450,1769868664158,-74112.95438116,0.0003,10]
[404111451,1769868664168,-1000.0,0.0003,120]
[404111452,1769868664178,-500.0,0.0003,120]
[404111453,1769868664187,-271.83,0.0003,2]
[404111454,1769868664198,-159.9,0.0003,2]
[404111455,1769868664207,-427.8,0.0003,15]
[404111456,1769868664219,-400.0,0.0003,20]
[404111457,1769868664230,-169.38318926,0.0003,120]
[404111458,1769868664239,-722289.2710598,0.0003,30]
[404111459,1769868664250,-591575.81674796,0.0003,120]
[404111460,1769868664262,-13705.63319419,0.0003,3]
[404111461,1769868664272,-320.09013767,0.0003,7]
[404111462,1769868664283,-187.88,0.0003,22]
[404111463,1769868664293,-165.89102725,0.0003013,20]
[404111464,1769868664304,-152.0,0.00030136,13]
[404111465,1769868664314,-1225.7,0.00030137,2]
[404111466,1769868664324,-1000.0,0.00030137,10]
[404111467,1769868664334,-1000.0,0.00030137,10]
[404111468,1769868664343,-1000.0,0.00030137,10]
[404111469,1769868664353,-1000.0,0.00030137,10]
[404111470,1769868664363,-1000.0,0.00030137,10]
[404111471,1769868664374,-1000.0,0.00030137,10]
[404111472,1769868664383,-1000.0,0.00030137,10]
[404111473,1769868664393,-1000.0,0.00030137,10]
[404111474,1769868664403,-1000.0,0.00030137,10]
[404111475,1769868664412,-1000.0,0.00030137,10]
[404111476,1769868664422,-1000.0,0.00030137,10]
[404111477,1769868664431,-1000.0,0.00030137,10]
[404111478,1769868664441,-1000.0,0.00030137,10]
[404111479,1769868664450,-1000.0,0.00030137,10]
[404111480,1769868664460,-1000.0,0.00030137,10]
[404111481,1769868664470,-1000.0,0.00030137,10]
[404111482,1769868664480,-1000.0,0.00030137,10]
[404111483,1769868664490,-1000.0,0.00030137,10]
[404111484,1769868664500,-1000.0,0.00030137,10]
[404111485,1769868664516,-1000.0,0.00030137,10]
[404111486,1769868664526,-1000.0,0.00030137,10]
[404111487,1769868664536,-1000.0,0.00030137,10]
[404111488,1769868664546,-1000.0,0.00030137,10]
[404111489,1769868664556,-1000.0,0.00030137,10]
[404111490,1769868664566,-1000.0,0.00030137,10]
[404111491,1769868664576,-1000.0,0.00030137,10]
[404111492,1769868664586,-1000.0,0.00030137,10]
[404111493,1769868664596,-1000.0,0.00030137,10]
[404111494,1769868664606,-1000.0,0.00030137,10]
[404111495,1769868664616,-1000.0,0.00030137,10]
[404111496,1769868664627,-1000.0,0.00030137,10]
[404111497,1769868664638,-1000.0,0.00030137,10]
[404111498,1769868664649,-1000.0,0.00030137,10]
[404111499,1769868664660,-1000.0,0.00030137,10]
[404111500,1769868664669,-1000.0,0.00030137,10]
[404111501,1769868664679,-868.0,0.00030137,10]
[404111502,1769868664689,-500.0,0.00030137,5]
[404111503,1769868664698,-215.75,0.000302,30]
[404111504,1769868664711,-199.67148699,0.000302,120]
[404111505,1769868664720,-410.93,0.00030411,120]
[404111506,1769868664731,-168.0,0.00030447,14]
[404111507,1769868664742,-618.0,0.00030525,13]
[404111508,1769868664757,-152.0,0.00030539,14]
[404111509,1769868664768,-181.31963188,0.00030634,5]
[404111510,1769868664778,-228.69657264,0.00030657,110]
[404111511,1769868664788,-35746.0,0.00030658,2]
[404111512,1769868664798,-537.40170282,0.00030685,5]
[404111513,1769868664807,-567.0,0.00030695,2]
[404111514,1769868664817,-162.0,0.000308,120]
[404111515,1769868664827,-2000.0,0.000308,2]
[404111516,1769868664836,-211.0,0.0003084,30]
[404111517,1769868664846,-250.54962211,0.00030931,15]
[404111518,1769868664857,-152.0,0.00030942,15]
[404111519,1769868664867,-17018.83358582,0.0003095,2]
[404111520,1769868664877,-51560.17942342,0.00031,2]
[404111521,1769868664886,-15999.999999,0.00031,7]
[404111522,1769868664896,-150.0,0.00031,4]
[404111523,1769868664906,-452.1128897,0.00031,30]
[404111524,1769868664916,-250.0,0.00031,120]
[404111525,1769868664925,-317.38415488,0.00031,4]
[404111526,1769868664935,-501.96828797,0.00031,60]
[404111527,1769868664946,-180.62571761,0.00031143,2]
[404111528,1769868664956,-618.0,0.00031152,14]
[404111529,1769868664966,-215.75,0.000313,30]
[404111530,1769868664976,-152.0,0.00031345,16]
[404111531,1769868664986,-152.0,0.00031345,4]
[404111532,1769868664996,-152.0,0.00031345,3]
[404111533,1769868665010,-300.0,0.000314,120]
[404111534,1769868665020,-19739.28377656,0.0003143,4]
[404111535,1769868665030,-197.32248346,0.000315,2]
[404111536,1769868665040,-150.0,0.000315,2]
[404111537,1769868665049,-2008.29062061,0.000316,2]
[404111538,1769868665059,-180.11,0.0003174,2]
[404111539,1769868665069,-152.0,0.00031748,17]
[404111540,1769868665079,-618.0,0.00031778,14]
[404111541,1769868665089,-215.75,0.000319,30]
[404111542,1769868665099,-500.0,0.00032,120]
[404111543,1769868665109,-178.7,0.00032,6]
[404111544,1769868665119,-500.0,0.00032,61]
[404111545,1769868665129,-3463.04,0.00032,7]
[404111546,1769868665140,-150.0,0.00032055,2]
[404111547,1769868665150,-152.0,0.00032151,18]
[404111548,1769868665159,-500.0,0.0003216,2]
[404111549,1769868665169,-361.55787936,0.000322,120]
[404111550,1769868665179,-933.69,0.00032232,30]
[404111551,1769868665189,-894.03902277,0.000323,2]
[404111552,1769868665199,-215.75,0.000324,30]
[404111553,1769868665209,-618.0,0.00032404,15]
[404111554,1769868665219,-1000.0,0.000325,120]
[404111555,1769868665230,-152.0,0.00032554,19]
[404111556,1769868665240,-4829.1745865,0.000328,2]
[404111557,1769868665250,-308.81049656,0.000328,120]
[404111558,1769868665264,-445.5,0.00032849,30]
[404111559,1769868665275,-760.2,0.00032849,30]
[404111560,1769868665284,-834.6,0.00032849,30]
[404111561,1769868665295,-1001.4,0.00032849,30]
[404111562,1769868665304,-201.2,0.00032849,30]
[404111563,1769868665314,-313.05197861,0.00032849,30]
[404111564,1769868665324,-212.85,0.00032849,30]
[404111565,1769868665334,-211.0,0.0003286,30]
[404111566,1769868665344,-1718.22829567,0.0003287,4]
[404111567,1769868665354,-500.0,0.00032876,30]
[404111568,1769868665365,-500.0,0.00032876,30]
[404111569,1769868665375,-457.14947502,0.00032876,30]
[404111570,1769868665385,-455.78801227,0.00032876,2]
[404111571,1769868665395,-363.10107752,0.00032876,2]
[404111572,1769868665405,-370.855583,0.00032876,2]
[404111573,1769868665415,-449.29815203,0.00032876,2]
[404111574,1769868665425,-500.0,0.00032876,2]
[404111575,1769868665435,-500.0,0.00032876,2]
[404111576,1769868665445,-377.20631973,0.00032876,2]
[404111577,1769868665455,-401.57967929,0.00032876,2]
[404111578,1769868665465,-500.0,0.00032876,2]
[404111579,1769868665475,-500.0,0.00032876,2]
[404111580,1769868665485,-500.0,0.00032876,2]
[404111581,1769868665495,-389.06195684,0.00032876,2]
[404111582,1769868665508,-500.0,0.00032876,2]
[404111583,1769868665519,-500.0,0.00032876,2]
[404111584,1769868665768,-500.0,0.00032876,2]
[404111585,1769868665778,-500.0,0.00032876,2]
[404111586,1769868665787,-500.0,0.00032876,2]
[404111587,1769868665798,-500.0,0.00032876,2]
[404111588,1769868665808,-500.0,0.00032876,2]
[404111589,1769868665819,-500.0,0.00032876,2]
[404111590,1769868665829,-500.0,0.00032876,2]
[404111591,1769868665839,-500.0,0.00032876,2]
[404111592,1769868665849,-500.0,0.00032876,2]
[404111593,1769868665859,-500.0,0.00032876,2]
[404111594,1769868665869,-500.0,0.00032876,2]
[404111595,1769868665879,-500.0,0.00032876,2]
[404111596,1769868665890,-500.0,0.00032876,2]
[404111597,1769868665900,-500.0,0.00032876,2]
[404111598,1769868665909,-500.0,0.00032876,2]
[404111599,1769868665919,-500.0,0.00032876,2]
[404111600,1769868665931,-500.0,0.00032876,2]
[404111601,1769868665940,-500.0,0.00032876,2]
[404111602,1769868665951,-500.0,0.00032876,2]
[404111603,1769868665962,-500.0,0.00032876,2]
[404111604,1769868665971,-500.0,0.00032876,2]
[404111605,1769868665980,-500.0,0.00032876,2]
[404111606,1769868665991,-500.0,0.00032876,2]
[404111607,1769868666001,-500.0,0.00032876,2]
[404111608,1769868666014,-500.0,0.00032876,2]
[404111609,1769868666025,-500.0,0.00032876,2]
[404111610,1769868666035,-500.0,0.00032876,2]
[404111611,1769868666045,-500.0,0.00032876,2]
[404111612,1769868666055,-500.0,0.00032876,2]
[404111613,1769868666066,-267.84057734,0.00032876,2]
[404111614,1769868666075,-500.0,0.00032876,2]
[404111615,1769868666084,-500.0,0.00032876,2]
[404111616,1769868666094,-500.0,0.00032876,2]
[404111617,1769868666103,-500.0,0.00032876,2]
[404111618,1769868666113,-500.0,0.00032876,2]
[404111619,1769868666124,-500.0,0.00032876,2]
[404111620,1769868666133,-500.0,0.00032876,2]
[404111621,1769868666143,-500.0,0.00032876,2]
[404111622,1769868666152,-500.0,0.00032876,2]
[404111623,1769868666161,-500.0,0.00032876,2]
[404111624,1769868666171,-580.3521732,0.00032876,2]
[404111625,1769868666180,-500.0,0.00032876,2]
[404111626,1769868666190,-500.0,0.00032876,2]
[404111627,1769868666199,-500.0,0.00032876,2]
[404111628,1769868666208,-500.0,0.00032876,2]
[404111629,1769868666218,-500.0,0.00032876,2]
[404111630,1769868666227,-500.0,0.00032876,2]
[404111631,1769868666237,-500.0,0.00032876,2]
[404111632,1769868666246,-500.0,0.00032876,2]
[404111633,1769868666258,-500.0,0.00032876,2]
[404111634,1769868666268,-500.0,0.00032876,2]
[404111635,1769868666277,-500.0,0.00032876,2]
[404111636,1769868666286,-500.0,0.00032876,2]
[404111637,1769868666296,-500.0,0.00032876,2]
[404111638,1769868666306,-500.0,0.00032876,2]
[404111639,1769868666315,-394.68429324,0.00032876,2]
[404111640,1769868666324,-344.66,0.00032877,2]
[404111641,1769868666333,-1225.7,0.00032877,2]
[404111642,1769868666343,-157.890292,0.00032877,31]
[404111643,1769868666353,-151.0,0.00032877,31]
[404111644,1769868666362,-151.0,0.00032877,31]
[404111645,1769868666371,-151.0,0.00032877,31]
[404111646,1769868666381,-151.0,0.00032877,31]
[404111647,1769868666390,-151.0,0.00032877,31]
[404111648,1769868666399,-500.0,0.00032877,2]
[404111649,1769868666409,-500.0,0.00032877,2]
[404111650,1769868666418,-500.0,0.00032877,2]
[404111651,1769868666428,-500.0,0.00032877,2]
[404111652,1769868666438,-355.61626445,0.00032877,2]
[404111653,1769868666449,-500.20723271,0.00032877,2]
[404111654,1769868666459,-150.0,0.00032877,2]
[404111655,1769868666468,-500.0,0.00032877,7]
[404111656,1769868666478,-500.0,0.00032877,7]
[404111657,1769868666487,-500.0,0.00032877,7]
[404111658,1769868666496,-605.80744136,0.00032877,7]
[404111659,1769868666506,-233.9786046,0.00032877,7]
[404111660,1769868666516,-4905.11,0.000329,14]
[404111661,1769868666525,-223.16612033,0.00032932,2]
[404111662,1769868666535,-152.0,0.00032957,20]
[404111663,1769868666544,-51292.9424802,0.00033,2]
[404111664,1769868666553,-26375.9192098,0.00033,2]
[404111665,1769868666563,-153.51489855,0.00033,2]
[404111666,1769868666572,-151.0,0.00033,7]
[404111667,1769868666581,-215.75,0.00033,30]
[404111668,1769868666591,-500.0,0.00033,62]
[404111669,1769868666601,-7711.83,0.00033,2]
[404111670,1769868666613,-1714.73,0.00033,14]
[404111671,1769868666624,-558.100021,0.00033,14]
[404111672,1769868666635,-177.607691,0.00033,120]
[404111673,1769868666651,-618.0,0.0003303,16]
[404111674,1769868666663,-151.0,0.000332,30]
[404111675,1769868666673,-152.0,0.0003336,21]
[404111676,1769868666683,-1211.1520864,0.000335,2]
[404111677,1769868666692,-215.75,0.000335,30]
[404111678,1769868666702,-1000.0,0.0003356,2]
[404111679,1769868666716,-1000.0,0.0003356,2]
[404111680,1769868666728,-1000.0,0.0003356,2]
[404111681,1769868666738,-1000.0,0.0003356,2]
[404111682,1769868666747,-1000.0,0.0003356,2]
[404111683,1769868666757,-1024.63637457,0.00033619,2]
[404111684,1769868666767,-1000.0,0.00033619,2]
[404111685,1769868666776,-1000.0,0.00033619,2]
[404111686,1769868666786,-1975.36362543,0.00033619,2]
[404111687,1769868666796,-150.0,0.00033649,2]
[404111688,1769868666805,-150.0,0.00033649,2]
[404111689,1769868666815,-150.0,0.00033649,2]
[404111690,1769868666825,-618.0,0.00033657,16]
[404111691,1769868666836,-567.0,0.00033695,2]
[404111692,1769868666847,-152.0,0.00033762,22]
[404111693,1769868666858,-215.75,0.00034,30]
[404111694,1769868666867,-500.0,0.00034,120]
[404111695,1769868666877,-500.0,0.00034,63]
[404111696,1769868666886,-7711.83,0.00034,2]
[404111697,1769868666896,-1714.73,0.00034,14]
[404111698,1769868666907,-6505.21,0.00034,2]
[404111699,1769868666918,-152.0,0.00034165,23]
[404111700,1769868666928,-152.0,0.00034165,5]
[404111701,1769868666938,-300.0,0.00034197,2]
[404111702,1769868666947,-150.0,0.00034197,2]
[404111703,1769868666957,-150.0,0.00034197,2]
[404111704,1769868666967,-410.93,0.00034212,120]
[404111705,1769868666977,-9335.55,0.00034225,2]
[404111706,1769868666987,-618.0,0.00034283,17]
[404111707,1769868666999,-4905.11,0.000343,14]
[404111708,1769868667010,-1730.54714823,0.0003449,2]
[404111709,1769868667019,-433.0,0.0003449,10]
[404111710,1769868667028,-16550.25,0.000345,2]
[404111711,1769868667037,-2000.0,0.000345,2]
[404111712,1769868667047,-150.0,0.00034521,2]
[404111713,1769868667056,-152.0,0.00034568,24]
[404111714,1769868667065,-157.14,0.00034745,2]
[404111715,1769868667075,-500.0,0.00034849,2]
[404111716,1769868667084,-393.44451156,0.0003488,120]
[404111717,1769868667093,-211.0,0.0003488,30]
[404111718,1769868667103,-151.0187404,0.000349,120]
[404111719,1769868667112,-1285.47,0.000349,30]
[404111720,1769868667122,-618.0,0.00034909,17]
[404111721,1769868667132,-152.0,0.00034971,25]
[404111722,1769868667142,-1916.66518508,0.00035,2]
[404111723,1769868667151,-151.0,0.00035,2]
[404111724,1769868667161,-164.0,0.00035,21]
[404111725,1769868667171,-1000.0,0.00035,120]
[404111726,1769868667181,-250.0,0.00035,7]
[404111727,1769868667190,-1400.0,0.00035,2]
[404111728,1769868667199,-253.64304221,0.00035,30]
[404111729,1769868667209,-8024.57,0.00035,14]
[404111730,1769868667219,-500.0,0.00035,64]
[404111731,1769868667228,-7711.83,0.00035,2]
[404111732,1769868667238,-1714.73,0.00035,14]
[404111733,1769868667247,-1256.41,0.00035038,2]
[404111734,1769868667259,-150.0,0.00035038,2]
[404111735,1769868667268,-150.0,0.00035038,2]
[404111736,1769868667278,-150.0,0.00035038,2]
[404111737,1769868667287,-5000.0,0.00035057,2]
[404111738,1769868667297,-4905.11,0.000352,14]
[404111739,1769868667307,-152.0,0.00035374,26]
[404111740,1769868667316,-223.46599037,0.00035421,120]
[404111741,1769868667325,-181.00399793,0.00035424,7]
[404111742,1769868667335,-404.20534563,0.00035424,7]
[404111743,1769868667344,-1130.70117737,0.00035424,7]
[404111744,1769868667354,-618.0,0.00035535,18]
[404111745,1769868667364,-172.0287601,0.00035589,120]
[404111746,1769868667374,-176.40276248,0.00035589,120]
[404111747,1769868667384,-167760.61874798,0.0003561,2]
[404111748,1769868667394,-247.49522614,0.00035616,120]
[404111749,1769868667403,-500.0,0.00035616,7]
[404111750,1769868667413,-500.0,0.00035616,7]
[404111751,1769868667423,-500.0,0.00035616,7]
[404111752,1769868667432,-500.0,0.00035616,7]
[404111753,1769868667442,-500.0,0.00035616,7]
[404111754,1769868667451,-500.0,0.00035616,7]
[404111755,1769868667461,-500.0,0.00035616,7]
[404111756,1769868667471,-500.0,0.00035616,7]
[404111757,1769868667481,-500.0,0.00035616,7]
[404111758,1769868667490,-500.0,0.00035616,7]
[404111759,1769868667500,-500.0,0.00035616,7]
[404111760,1769868667512,-500.0,0.00035616,7]
[404111761,1769868667522,-500.0,0.00035616,7]
[404111762,1769868667531,-500.0,0.00035616,7]
[404111763,1769868667540,-306.40015816,0.00035616,7]
[404111764,1769868667549,-500.0,0.00035616,7]
[404111765,1769868667560,-500.0,0.00035616,7]
[404111766,1769868667569,-500.0,0.00035616,7]
[404111767,1769868667579,-547.8736686,0.00035616,7]
[404111768,1769868667588,-306.40015816,0.00035616,7]
[404111769,1769868667597,-171.98596318,0.00035616,7]
[404111770,1769868667606,-1225.7,0.00035616,2]
[404111771,1769868667617,-193.48413176,0.00035616,2]
[404111772,1769868667628,-600.0,0.00035616,2]
[404111773,1769868667638,-152.0,0.00035777,27]
[404111774,1769868667648,-151.0,0.000358,21]
[404111775,1769868667659,-520.73,0.00036,30]
[404111776,1769868667668,-234509.90779495,0.00036,2]
[404111777,1769868667678,-151.0,0.00036,7]
[404111778,1769868667688,-500.0,0.00036,120]
[404111779,1769868667698,-1030.0,0.00036,30]
[404111780,1769868667709,-466188.41625799,0.00036,10]
[404111781,1769868667719,-200.0,0.00036,30]
[404111782,1769868667728,-500.0,0.00036,65]
[404111783,1769868667738,-7711.83,0.00036,2]
[404111784,1769868667749,-1714.73,0.00036,14]
[404111785,1769868667761,-773.62,0.0003601,10]
[404111786,1769868667770,-558.17,0.00036122,10]
[404111787,1769868667780,-618.0,0.00036162,18]
[404111788,1769868667789,-600.0,0.00036164,2]
[404111789,1769868667798,-152.0,0.0003618,28]
[404111790,1769868667808,-4118.75,0.00036579,10]
[404111791,1769868667817,-152.0,0.00036583,29]
[404111792,1769868667827,-1010.42,0.00036584,10]
[404111793,1769868667838,-4905.11,0.000366,14]
[404111794,1769868667847,-466.428,0.00036695,2]
[404111795,1769868667857,-600.0,0.00036712,2]
[404111796,1769868667866,-520.73,0.0003672,30]
[404111797,1769868667876,-666.54,0.00036733,10]
[404111798,1769868667885,-618.0,0.00036788,19]
[404111799,1769868667894,-1610.08861535,0.000368,2]
[404111800,1769868667904,-1954.25066425,0.000368,2]
[404111801,1769868667915,-148214.59542591,0.00036888,60]
[404111802,1769868667927,-2210.50029759,0.00036888,60]
[404111803,1769868667938,-211.0,0.0003689,30]
[404111804,1769868667949,-14121.78006668,0.0003691,2]
[404111805,1769868667958,-152.0,0.00036986,30]
[404111806,1769868667968,-152.0,0.00036986,6]
[404111807,1769868667977,-255.0224895,0.00036986,5]
[404111808,1769868667987,-152.0,0.00036986,4]
[404111809,1769868667997,-152.0,0.00036986,5]
[404111810,1769868668009,-150.0,0.00036986,2]
[404111811,1769868668019,-165.60655835,0.00037,2]
[404111812,1769868668029,-300.0,0.00037,120]
[404111813,1769868668039,-1018.0,0.00037,30]
[404111814,1769868668052,-361.58646695,0.00037,4]
[404111815,1769868668062,-500.0,0.00037,66]
[404111816,1769868668072,-7711.83,0.00037,2]
[404111817,1769868668186,-1714.73,0.00037,14]
[404111818,1769868668197,-933.69,0.00037067,120]
[404111819,1769868668207,-172.81036,0.00037143,30]
[404111820,1769868668217,-186.51966281,0.000372,120]
[404111821,1769868668227,-186.51966277,0.000372,120]
[404111822,1769868668236,-186.51966277,0.000372,120]
[404111823,1769868668246,-186.51966277,0.000372,120]
[404111824,1769868668260,-186.51966277,0.000372,120]
[404111825,1769868668270,-600.0,0.0003726,2]
[404111826,1769868668280,-172.81036,0.00037343,30]
[404111827,1769868668289,-618.0,0.00037414,20]
[404111828,1769868668299,-520.73,0.0003744,30]
[404111829,1769868668309,-3000.0,0.00037456,31]
[404111830,1769868668319,-172.81036,0.00037543,30]
[404111831,1769868668329,-348.63,0.00037549,2]
[404111832,1769868668338,-4330.58782665,0.0003759,2]
[404111833,1769868668348,-172.81036,0.00037743,30]
[404111834,1769868668358,-957.85701745,0.00037753,120]
[404111835,1769868668368,-537.81,0.00037808,60]
[404111836,1769868668378,-600.0,0.00037808,2]
[404111837,1769868668387,-239.2391768,0.00037819,120]
[404111838,1769868668397,-537.82,0.00037839,80]
[404111839,1769868668406,-537.82,0.00037869,100]
[404111840,1769868668416,-202.03142298,0.0003788,2]
[404111841,1769868668425,-537.81,0.000379,120]
[404111842,1769868668435,-903.82045,0.000379,120]
[404111843,1769868668444,-172.81036,0.00037943,30]
[404111844,1769868668457,-2042.0,0.00038,30]
[404111845,1769868668467,-215.75,0.00038,30]
[404111846,1769868668476,-1002.20068248,0.00038,120]
[404111847,1769868668486,-500.0,0.00038,120]
[404111848,1769868668495,-250.0,0.00038,7]
[404111849,1769868668504,-4500.0,0.00038,10]
[404111850,1769868668517,-500.0,0.00038,67]
[404111851,1769868668526,-7711.83,0.00038,2]
[404111852,1769868668536,-1714.73,0.00038,14]
[404111853,1769868668545,-410.93,0.00038014,120]
[404111854,1769868668555,-618.0,0.0003804,20]
[404111855,1769868668564,-443.9816,0.000381,33]
[404111856,1769868668574,-187.75917338,0.0003813,120]
[404111857,1769868668584,-172.81036,0.00038143,30]
[404111858,1769868668594,-520.73,0.0003816,30]
[404111859,1769868668604,-212.39695794,0.00038184,120]
[404111860,1769868668614,-2000.0,0.000382,2]
[404111861,1769868668624,-257.35656629,0.000383,30]
[404111862,1769868668634,-172.81036,0.00038343,30]
[404111863,1769868668646,-1028.63,0.00038356,120]
[404111864,1769868668656,-454.78808827,0.00038356,7]
[404111865,1769868668666,-300.0,0.00038356,120]
[404111866,1769868668676,-300.0,0.00038356,120]
[404111867,1769868668685,-300.0,0.00038356,120]
[404111868,1769868668695,-300.0,0.00038356,120]
[404111869,1769868668705,-300.0,0.00038356,120]
[404111870,1769868668715,-300.0,0.00038356,120]
[404111871,1769868668725,-300.0,0.00038356,120]
[404111872,1769868668734,-300.0,0.00038356,120]
[404111873,1769868668744,-300.0,0.00038356,120]
[404111874,1769868668753,-300.0,0.00038356,120]
[404111875,1769868668767,-300.0,0.00038356,120]
[404111876,1769868668777,-300.0,0.00038356,120]
[404111877,1769868668786,-300.0,0.00038356,120]
[404111878,1769868668796,-300.0,0.00038356,120]
[404111879,1769868668805,-300.0,0.00038356,120]
[404111880,1769868668815,-300.0,0.00038356,120]
[404111881,1769868668824,-300.0,0.00038356,120]
[404111882,1769868668833,-300.0,0.00038356,120]
[404111883,1769868668842,-300.0,0.00038356,120]
[404111884,1769868668853,-300.0,0.00038356,120]
[404111885,1769868668863,-300.0,0.00038356,120]
[404111886,1769868668872,-300.0,0.00038356,120]
[404111887,1769868668881,-300.0,0.00038356,120]
[404111888,1769868668891,-300.0,0.00038356,120]
[404111889,1769868668901,-300.0,0.00038356,120]
[404111890,1769868668910,-300.0,0.00038356,120]
[404111891,1769868668919,-151.0,0.00038356,120]
[404111892,1769868668929,-151.0,0.00038356,120]
[404111893,1769868668938,-151.0,0.00038356,120]
[404111894,1769868668947,-151.0,0.00038356,120]
[404111895,1769868668957,-164.090336,0.00038356,120]
[404111896,1769868668966,-158.374092,0.00038356,120]
[404111897,1769868668976,-151.0,0.00038356,120]
[404111898,1769868668985,-151.0,0.00038356,120]
[404111899,1769868668995,-151.0,0.00038356,120]